fUSD/lending_fUSD_20251220
["ID","MTS","AMOUNT","RATE_DAILY","PERIOD"]
[399254493,1766208646420,-1002.26047729,0.00016848,2]
[399254494,1766208646431,-1000.0,0.00016848,2]
[399254495,1766208646441,-1001.39291005,0.00016848,2]
[399254496,1766208646453,-221.90485079,0.00016848,2]
[399254497,1766208646465,-1000.0,0.00016848,2]
[399254498,1766208646475,-1001.13256122,0.00016848,2]
[399254499,1766208646486,-1000.0,0.00016848,2]
[399254500,1766208646497,-1000.87754816,0.00016848,2]
[399254501,1766208646507,-179.47316237,0.00016848,2]
[399254502,1766208646517,-1001.01249642,0.00016848,2]
[399254503,1766208646528,-1001.0881382,0.00016848,2]
[399254504,1766208646540,-1000.87355102,0.00016848,2]
[399254505,1766208646550,-1001.31913615,0.00016848,2]
[399254506,1766208646560,-1000.91698308,0.00016848,2]
[399254507,1766208646571,-1001.0574546,0.00016848,2]
[399254508,1766208646581,-1001.02020729,0.00016848,2]
[399254509,1766208646591,-1000.0,0.00016848,2]
[399254510,1766208646602,-500.65137842,0.00016848,2]
[399254511,1766208646613,-1001.04078122,0.00016848,2]
[399254512,1766208646623,-1001.94292641,0.00016848,2]
[399254514,1766208646633,-1000.0,0.00016848,2]
[399254515,1766208646643,-1000.866265,0.00016848,2]
[399254516,1766208646653,-500.58632088,0.00016848,2]
[399254517,1766208646663,-998.88830841,0.00016848,2]
[399254518,1766208646674,-1000.0,0.00016848,2]
[399254519,1766208646685,-1000.0,0.00016848,2]
[399254520,1766208646695,-1000.96314567,0.00016848,2]
[399254521,1766208646706,-1000.0,0.00016848,2]
[399254522,1766208646720,-1000.0,0.00016848,2]
[399254523,1766208646730,-501.13881872,0.00016848,2]
[399254524,1766208646741,-1000.0,0.00016848,2]
[399254525,1766208646751,-1001.82577211,0.00016848,2]
[399254526,1766208646763,-1000.9465121,0.00016848,2]
[399254527,1766208646774,-500.0,0.00016848,2]
[399254528,1766208646785,-500.0,0.00016849,2]
[399254529,1766208646797,-379.01049715,0.00016873,2]
[399254530,1766208646808,-10000.0,0.000169,2]
[399254531,1766208646818,-181.47081457,0.000169,2]
[399254532,1766208646829,-1844.84411065,0.000169,2]
[399254533,1766208646839,-31721.03093921,0.000169,2]
[399254534,1766208646850,-515.04736606,0.000169,2]
[399254535,1766208646862,-33607.33198618,0.0001696,2]
[399254536,1766208646874,-1415.50707301,0.0001696,2]
[399254537,1766208646885,-150.10981544,0.00016973,2]
[399254538,1766208646895,-163.39899626,0.00016973,2]
[399254539,1766208646906,-150.09235231,0.00016973,2]
[399254540,1766208646917,-150.0,0.00016973,2]
[399254541,1766208646927,-150.0,0.00016973,2]
[399254542,1766208646941,-500.0,0.00016986,2]
[399254543,1766208646951,-2101.41,0.00016986,2]
[399254544,1766208646961,-500.0,0.00016986,2]
[399254545,1766208646971,-500.0,0.00016986,2]
[399254546,1766208646982,-438262.77,0.00016986,2]
[399254547,1766208646992,-1647.70919262,0.0001699,2]
[399254548,1766208647461,-151.0,0.00016996,2]
[399254549,1766208647479,-151.0,0.00016997,2]
[399254550,1766208647495,-500.0,0.00016998,2]
[399254551,1766208647506,-469.51043734,0.00016998,2]
[399254552,1766208647515,-718.52,0.00016998,2]
[399254553,1766208647524,-718.52,0.00016998,2]
[399254554,1766208647534,-718.52,0.00016998,2]
[399254555,1766208647543,-1500.0,0.00016998,2]
[399254556,1766208647552,-1500.0,0.00016998,2]
[399254557,1766208647561,-1527.47643038,0.00016998,2]
[399254558,1766208647571,-500.0,0.00016998,2]
[399254559,1766208647580,-718.52,0.00016999,2]
[399254560,1766208647590,-718.52,0.00016999,2]
[399254561,1766208647601,-718.52,0.00016999,2]
[399254562,1766208647612,-718.52,0.00016999,2]
[399254563,1766208647622,-718.52,0.00016999,2]
[399254564,1766208647631,-416515.74596377,0.00016999,3]
[399254565,1766208647640,-500.0,0.00016999,2]
[399254566,1766208647650,-500.0,0.00016999,2]
[399254567,1766208647659,-308.45911544,0.00016999,2]
[399254568,1766208647669,-500.0,0.00016999,2]
[399254569,1766208647678,-500.0,0.00016999,2]
[399254570,1766208647687,-500.0,0.00016999,2]
[399254571,1766208647697,-500.0,0.00016999,2]
[399254572,1766208647706,-500.0,0.00016999,2]
[399254573,1766208647723,-500.0,0.00016999,2]
[399254574,1766208647732,-500.0,0.00016999,2]
[399254575,1766208647742,-592.36853989,0.00016999,2]
[399254576,1766208647751,-188.65,0.00017,7]
[399254577,1766208647760,-250.0,0.00017,2]
[399254578,1766208647770,-1065198.07395946,0.00017,2]
[399254579,1766208647983,-2691.86743805,0.00017,2]
[399254580,1766208648036,-510.00208829,0.00016435,2]
[399254581,1766208648046,-3845.84791171,0.00017,2]
[399254582,1766208648057,-1902.07,0.00017,2]
[399254583,1766208648070,-746510.47700747,0.00017,2]
[399254584,1766208648081,-2860.95238278,0.00017,2]
[399254585,1766208648092,-625.06005223,0.00017,2]
[399254586,1766208648103,-443.96138219,0.00017,2]
[399254587,1766208648114,-776.42636932,0.00017,2]
[399254588,1766208648125,-3464.4454591,0.00017,2]
[399254589,1766208648137,-5406.50649121,0.00017,2]
[399254590,1766208648275,-25981.31607109,0.00017,2]
[399254591,1766208648288,-302.05042645,0.00017,2]
[399254592,1766208648304,-662.76,0.00017,2]
[399254593,1766208648368,-225.52306362,0.00015969,2]
[399254594,1766208648378,-175.4599598,0.0001689,2]
[399254595,1766208648387,-175.45995978,0.00016892,2]
[399254596,1766208648397,-175.45995978,0.00016894,2]
[399254597,1766208648407,-175.45995978,0.00016896,2]
[399254598,1766208648416,-15876.72784439,0.00017,2]
[399254599,1766208648444,-430.82397319,0.00011533,2]
[399254600,1766208648456,-69.17602681,0.00011533,2]
[399254601,1766208648467,-939.06472214,0.00017,2]
[399254602,1766208702623,-4407.934,0.00011303,2]
[399254603,1766208702937,-1184.142,0.00011303,2]
[399254604,1766208702966,-336.818,0.00011303,2]
[399254609,1766209246304,187.17,9.179e-05,2]
[399254610,1766209246520,187.17,0.00010097,2]
[399254611,1766209246706,187.17,0.00011015,2]
[399254624,1766209315216,-1879.31077614,0.00011434,2]
[399254625,1766209315245,-10000.01,0.00011434,2]
[399254626,1766209315376,-10000.01,0.00011434,2]
[399254627,1766209315510,-10000.01,0.00011434,2]
[399254654,1766209416480,-183.850552,0.00011375,2]
[399254655,1766209416509,-195.0,0.00011404,2]
[399254656,1766209416537,-195.0,0.00011422,2]
[399254657,1766209416567,-894.91811465,0.00011433,2]
[399254658,1766209416597,-150.0,0.00011433,2]
[399254659,1766209416626,-300.0,0.00011433,2]
[399254660,1766209416654,-1200.0,0.00011433,2]
[399254661,1766209416683,-250.0,0.00011433,2]
[399254662,1766209416812,-3262.4726667,0.00011434,2]
[399254675,1766209501587,581.9,0.00011144,2]
[399254685,1766209587530,150.0,0.00010959,2]
[399254686,1766209612666,150.0,0.00010931,2]
[399254696,1766209674293,9118.11,0.00011239,2]
[399254697,1766209674330,10000.01,0.00011239,2]
[399254698,1766209674355,10000.01,0.00011239,2]
[399254699,1766209674382,1087.92972081,0.00011239,2]
[399254700,1766209686818,-150.0,0.00011333,2]
[399254701,1766209686840,-1200.0,0.00011333,2]
[399254702,1766209686865,-3650.0,0.00011334,2]
[399254703,1766209688911,1523.45274779,0.00011239,2]
[399254704,1766209688949,312.81989721,0.00011239,2]
[399254705,1766209688987,599.21350501,0.00011239,2]
[399254706,1766209699559,6476.59412918,0.00010849,2]
[399254707,1766209699587,3898.30587082,0.00010849,2]
[399254708,1766209720475,956.25057975,0.00010897,2]
[399254709,1766209720495,1464.76942025,0.00010897,2]
[399254710,1766209726119,500.0,0.00010897,2]
[399254718,1766209779641,158.0012656,0.00011239,2]
[399254719,1766209790536,500.0,0.00011239,2]
[399254720,1766209799970,2231.78576472,0.00010838,2]
[399254721,1766209799993,2293.03423528,0.00010838,2]
[399254727,1766209832065,-242.0,0.00011273,2]
[399254729,1766209832076,-47.74752152,0.00011273,2]
[399254732,1766209832090,-147.25247848,0.00011273,2]
[399254733,1766209832100,-153.0,0.00011273,2]
[399254734,1766209832146,-13.66,0.00011273,2]
[399254735,1766209832157,-195.0,0.00011309,2]
[399254736,1766209832168,-311.90194573,0.00011332,2]
[399254737,1766209832185,-888.09805427,0.00011332,2]
[399254738,1766209832195,-300.0,0.00011332,2]
[399254739,1766209832206,-345.28585759,0.00011333,2]
[399254740,1766209832216,-500.0,0.00011333,2]
[399254741,1766209832228,-500.0,0.00011333,2]
[399254742,1766209832238,-500.0,0.00011333,2]
[399254743,1766209832249,-500.0,0.00011333,2]
[399254744,1766209832260,-500.0,0.00011333,2]
[399254745,1766209832271,-500.0,0.00011333,2]
[399254746,1766209832281,-500.0,0.00011333,2]
[399254747,1766209832291,-500.0,0.00011333,2]
[399254748,1766209832302,-500.0,0.00011333,2]
[399254749,1766209832312,-500.0,0.00011333,2]
[399254750,1766209832322,-500.0,0.00011333,2]
[399254751,1766209832332,-500.0,0.00011333,2]
[399254752,1766209832342,-500.0,0.00011333,2]
[399254754,1766209832352,-217.42319122,0.00011333,2]
[399254756,1766209832363,-217.72413288,0.00011333,2]
[399254758,1766209832373,-184.87989101,0.00011333,2]
[399254760,1766209832383,-500.0,0.00011333,2]
[399254762,1766209832393,-500.0,0.00011333,2]
[399254765,1766209832404,-317.66880638,0.00011333,2]
[399254766,1766209832414,-500.0,0.00011333,2]
[399254768,1766209832424,-500.0,0.00011333,2]
[399254769,1766209832433,-500.0,0.00011333,2]
[399254770,1766209832444,-500.0,0.00011333,2]
[399254771,1766209832454,-500.0,0.00011333,2]
[399254772,1766209832464,-500.0,0.00011333,2]
[399254773,1766209832474,-500.0,0.00011333,2]
[399254774,1766209832484,-500.0,0.00011333,2]
[399254775,1766209832499,-500.0,0.00011333,2]
[399254776,1766209832515,-500.0,0.00011333,2]
[399254777,1766209832526,-500.0,0.00011333,2]
[399254778,1766209832537,-484.32026744,0.00011333,2]
[399254779,1766209832548,-261.99760616,0.00011333,2]
[399254780,1766209838206,-238.00239384,0.00011333,2]
[399254781,1766209838216,-500.0,0.00011333,2]
[399254782,1766209838225,-500.0,0.00011333,2]
[399254783,1766209838234,-303.08407655,0.00011333,2]
[399254784,1766209838243,-996350.0,0.00011334,2]
[399254785,1766209838253,-38722.04476071,0.00011339,2]
[399254786,1766209838263,-250.0,0.00011373,2]
[399254787,1766209838272,-2500.0,0.00011407,2]
[399254788,1766209838282,-2659.4506,0.00011425,2]
[399254789,1766209838292,-1647.70919262,0.0001143,2]
[399254790,1766209838301,-5852.60752696,0.00011434,2]
[399254791,1766209838310,-6547.31,0.00011434,2]
[399254792,1766209838319,-150.99,0.00011439,2]
[399254793,1766209838328,-1543.55,0.00011439,2]
[399254794,1766209838337,-18136.77,0.00011439,2]
[399254795,1766209838346,-78835.58,0.00011439,2]
[399254796,1766209838355,-9999.99,0.00011439,2]
[399254797,1766209838364,-9999.99,0.00011439,2]
[399254798,1766209838374,-499.99,0.00011439,2]
[399254799,1766209838382,-1530.67,0.00011439,2]
[399254800,1766209838392,-999.99,0.00011439,2]
[399254801,1766209838401,-473.98937354,0.0001144,2]
[399254802,1766209838410,-9999.99,0.0001144,2]
[399254803,1766209838419,-9999.99,0.0001144,2]
[399254804,1766209838428,-9999.99,0.0001144,2]
[399254805,1766209838438,-21820.75,0.0001144,2]
[399254806,1766209838447,-150.99,0.0001144,2]
[399254807,1766209838456,-500.0,0.0001144,2]
[399254808,1766209838465,-158.0012656,0.0001144,2]
[399254809,1766209838475,-1831.8057,0.00011507,2]
[399254810,1766209838484,-3240.0,0.00011507,2]
[399254811,1766209838494,-2101.41,0.00011527,2]
[399254812,1766209838503,-151.0,0.00011527,2]
[399254813,1766209838512,-500.0,0.00011527,2]
[399254814,1766209838521,-500.0,0.00011527,2]
[399254815,1766209838530,-151.0,0.00011527,2]
[399254817,1766209838539,-500.0,0.00011527,2]
[399254819,1766209838548,-500.0,0.00011527,2]
[399254821,1766209838557,-151.0,0.00011527,2]
[399254823,1766209838566,-500.0,0.00011527,2]
[399254825,1766209838575,-500.0,0.00011527,2]
[399254827,1766209838584,-151.0,0.00011527,2]
[399254829,1766209838593,-151.0,0.00011527,2]
[399254830,1766209838603,-500.0,0.00011527,2]
[399254832,1766209838612,-500.0,0.00011527,2]
[399254834,1766209838621,-151.0,0.00011527,2]
[399254836,1766209838630,-500.0,0.00011527,2]
[399254838,1766209838639,-500.0,0.00011527,2]
[399254840,1766209838648,-151.0,0.00011527,2]
[399254842,1766209838657,-500.0,0.00011527,2]
[399254844,1766209838666,-500.0,0.00011527,2]
[399254846,1766209838676,-151.0,0.00011527,2]
[399254848,1766209838685,-500.0,0.00011527,2]
[399254850,1766209838694,-500.0,0.00011527,2]
[399254852,1766209838703,-151.0,0.00011527,2]
[399254854,1766209838712,-500.0,0.00011527,2]
[399254856,1766209838721,-500.0,0.00011527,2]
[399254858,1766209838730,-151.0,0.00011527,2]
[399254860,1766209838739,-500.0,0.00011527,2]
[399254862,1766209838748,-500.0,0.00011527,2]
[399254864,1766209838757,-151.0,0.00011527,2]
[399254866,1766209838766,-500.0,0.00011527,2]
[399254868,1766209838775,-500.0,0.00011527,2]
[399254870,1766209838784,-500.0,0.00011527,2]
[399254872,1766209838793,-500.0,0.00011527,2]
[399254874,1766209838802,-200.0,0.00011527,2]
[399254876,1766209838812,-200.0,0.00011527,2]
[399254878,1766209838821,-500.0,0.00011527,2]
[399254880,1766209838829,-200.0,0.00011527,2]
[399254883,1766209838839,-355.42802195,0.00011527,2]
[399254884,1766209838848,-151.0,0.00011527,2]
[399254886,1766209838858,-151.0,0.00011527,2]
[399254887,1766209838867,-151.0,0.00011527,2]
[399254889,1766209838877,-151.0,0.00011527,2]
[399254891,1766209838886,-151.0,0.00011527,2]
[399254893,1766209838894,-151.0,0.00011527,2]
[399254895,1766209838904,-151.0,0.00011527,2]
[399254897,1766209838913,-151.0,0.00011527,2]
[399254899,1766209838922,-151.0,0.00011527,2]
[399254901,1766209838932,-151.0,0.00011527,2]
[399254903,1766209838941,-151.0,0.00011527,2]
[399254905,1766209838950,-151.0,0.00011527,2]
[399254907,1766209838959,-151.0,0.00011527,2]
[399254909,1766209838968,-151.0,0.00011527,2]
[399254911,1766209838977,-151.0,0.00011527,2]
[399254913,1766209838987,-151.0,0.00011527,2]
[399254915,1766209838997,-151.0,0.00011527,2]
[399254917,1766209839006,-151.0,0.00011527,2]
[399254919,1766209839015,-151.0,0.00011527,2]
[399254921,1766209839024,-151.0,0.00011527,2]
[399254923,1766209839034,-41275.4,0.00011531,2]
[399254925,1766209839043,-3805.42,0.00011531,2]
[399254927,1766209839053,-4999.99,0.00011531,2]
[399254929,1766209839062,-1574.22,0.00011531,2]
[399254931,1766209839072,-299.99,0.00011531,2]
[399254932,1766209839084,-9999.99,0.00011531,2]
[399254934,1766209839094,-1807.42,0.00011531,2]
[399254936,1766209839104,-27591.04624507,0.00011533,2]
[399254938,1766209839117,-33491.4068,0.0001154,2]
[399254940,1766209839126,-1000.0,0.0001154,2]
[399254942,1766209839136,-166.66,0.00011645,2]
[399254944,1766209839145,-500.0,0.00011714,2]
[399254946,1766209839156,-1000.0,0.00011736,2]
[399254948,1766209839166,-2101.41,0.00011801,2]
[399254950,1766209839175,-30206.05972072,0.00011868,2]
[399254952,1766209839186,-187.17,0.00011933,2]
[399254954,1766209839195,-151.0,0.00011954,2]
[399254956,1766209839205,-38722.0447607,0.00011957,2]
[399254958,1766209839214,-166.66,0.00012017,2]
[399254960,1766209839224,-2101.41,0.00012075,2]
[399254962,1766209839233,-200.0,0.00012075,2]
[399254964,1766209839242,-500.0,0.00012075,2]
[399254966,1766209839252,-200.0,0.00012075,2]
[399254968,1766209839262,-332880.5054219,0.00012153,2]
[399254970,1766209839271,-515.04736606,0.00012287,2]
[399254972,1766209839280,-2101.41,0.00012349,2]
[399254974,1766209839289,-255.0,0.00012387,2]
[399254976,1766209839298,-166.66,0.0001239,2]
[399254978,1766209839307,-195.0,0.000124,2]
[399254980,1766209839316,-250.0,0.00012401,2]
[399254982,1766209839325,-300.0,0.00012448,2]
[399254984,1766209839334,-1680.0,0.00012449,2]
[399254986,1766209839343,-200.0,0.00012465,2]
[399254988,1766209839353,-193.0,0.00012465,2]
[399254990,1766209839362,-195.0,0.00012466,2]
[399254992,1766209839370,-193.0,0.00012466,2]
[399254993,1766209839379,-250.0,0.00012473,2]
[399254995,1766209839389,-195.0,0.00012473,2]
[399254997,1766209839398,-167.44206992,0.00012496,2]
[399254999,1766209839407,-30206.05972072,0.00012497,2]
[399255001,1766209839417,-402.06888544,0.00012524,2]
[399255003,1766209839426,-473.98937354,0.00012528,2]
[399255005,1766209839435,-38722.0447607,0.00012575,2]
[399255008,1766209839444,-2101.41,0.00012623,2]
[399255010,1766209839454,-200.0,0.00012623,2]
[399255011,1766209839463,-500.0,0.00012623,2]
[399255012,1766209839472,-200.0,0.00012623,2]
[399255013,1766209839481,-166.66,0.00012762,2]
[399255014,1766209839490,-268.67,0.00012827,2]
[399255015,1766209839498,-187.17,0.00012851,2]
[399255016,1766209839507,-11435.1,0.00012893,2]
[399255017,1766209839516,-9999.99,0.00012893,2]
[399255018,1766209839525,-344.61,0.00012893,2]
[399255019,1766209839534,-2101.41,0.00012897,2]
[399255020,1766209839543,-517.34202093,0.00013026,2]
[399255021,1766209839554,-160.47,0.00013112,2]
[399255022,1766209839563,-30206.05972072,0.00013126,2]
[399255023,1766209839572,-166.66,0.00013134,2]
[399255024,1766209839581,-2101.41,0.00013171,2]
[399255025,1766209839590,-200.0,0.00013171,2]
[399255026,1766209839599,-500.0,0.00013171,2]
[399255027,1766209839608,-200.0,0.00013171,2]
[399255028,1766209839617,-38722.0447607,0.00013193,2]
[399255029,1766209839626,-1000.0,0.00013203,2]
[399255030,1766209839635,-8522.24523955,0.00013282,2]
[399255031,1766209839644,-151.0,0.00013283,2]
[399255032,1766209839653,-151.0,0.0001329,2]
[399255033,1766209839662,-2101.41,0.00013445,2]
[399255034,1766209839671,-737.82673994,0.00013446,2]
[399255035,1766209839680,-433.0,0.00013543,2]
[399255036,1766209839690,-852.48970199,0.00013567,2]
[399255037,1766209839699,-473.98937354,0.00013616,2]
[399255038,1766209839708,-1010.0,0.00013676,2]
[399255039,1766209839717,-508.21699251,0.00013698,2]
[399255040,1766209839726,-500.0,0.00013698,2]
[399255041,1766209839736,-500.0,0.00013698,2]
[399255042,1766209839745,-500.0,0.00013698,2]
[399255043,1766209839754,-500.0,0.00013698,2]
[399255044,1766209839763,-500.0,0.00013698,2]
[399255045,1766209839772,-500.0,0.00013698,2]
[399255046,1766209839781,-500.0,0.00013698,2]
[399255047,1766209839790,-500.0,0.00013698,2]
[399255048,1766209839799,-500.0,0.00013698,2]
[399255049,1766209839807,-500.0,0.00013698,2]
[399255050,1766209839816,-500.0,0.00013698,2]
[399255051,1766209839825,-500.0,0.00013698,2]
[399255052,1766209839834,-500.0,0.00013698,2]
[399255053,1766209839843,-500.0,0.00013698,2]
[399255054,1766209839853,-344.15406571,0.00013698,2]
[399255055,1766209839862,-500.0,0.00013698,2]
[399255056,1766209839871,-500.0,0.00013698,2]
[399255057,1766209839881,-500.0,0.00013698,2]
[399255058,1766209839890,-500.0,0.00013698,2]
[399255059,1766209839899,-500.0,0.00013698,2]
[399255060,1766209839908,-508.09528343,0.00013698,2]
[399255061,1766209839917,-500.0,0.00013698,2]
[399255062,1766209839926,-500.0,0.00013698,2]
[399255063,1766209839935,-500.0,0.00013698,2]
[399255064,1766209839944,-500.0,0.00013698,2]
[399255065,1766209839953,-500.0,0.00013698,2]
[399255066,1766209839962,-500.0,0.00013698,2]
[399255067,1766209839971,-500.0,0.00013698,2]
[399255068,1766209839981,-500.0,0.00013698,2]
[399255069,1766209839991,-500.0,0.00013698,2]
[399255070,1766209840000,-500.0,0.00013698,2]
[399255071,1766209840009,-500.0,0.00013698,2]
[399255072,1766209840018,-500.0,0.00013698,2]
[399255073,1766209840027,-500.0,0.00013698,2]
[399255074,1766209840037,-500.0,0.00013698,2]
[399255075,1766209840046,-511.85238157,0.00013698,2]
[399255076,1766209840056,-500.0,0.00013698,2]
[399255077,1766209840066,-500.0,0.00013698,2]
[399255078,1766209840075,-500.0,0.00013698,2]
[399255079,1766209840084,-500.0,0.00013698,2]
[399255080,1766209840093,-500.0,0.00013698,2]
[399255081,1766209840102,-500.0,0.00013698,2]
[399255082,1766209840115,-500.0,0.00013698,2]
[399255083,1766209840124,-500.0,0.00013698,2]
[399255084,1766209840134,-422.41999488,0.00013698,2]
[399255085,1766209840143,-500.0,0.00013698,2]
[399255086,1766209840152,-500.0,0.00013698,2]
[399255087,1766209840161,-500.0,0.00013698,2]
[399255088,1766209840170,-500.0,0.00013698,2]
[399255089,1766209840179,-500.0,0.00013698,2]
[399255090,1766209840189,-500.0,0.00013698,2]
[399255091,1766209840198,-500.0,0.00013698,2]
[399255092,1766209840207,-500.0,0.00013698,2]
[399255093,1766209840215,-500.0,0.00013698,2]
[399255094,1766209840224,-500.0,0.00013698,2]
[399255095,1766209840233,-500.0,0.00013698,2]
[399255096,1766209840242,-500.0,0.00013698,2]
[399255097,1766209840251,-500.0,0.00013698,2]
[399255098,1766209840260,-500.0,0.00013698,2]
[399255099,1766209840269,-500.0,0.00013698,2]
[399255100,1766209840278,-508.78923664,0.00013698,2]
[399255101,1766209840287,-500.0,0.00013698,2]
[399255102,1766209840296,-500.0,0.00013698,2]
[399255103,1766209840305,-500.0,0.00013698,2]
[399255104,1766209840315,-500.0,0.00013698,2]
[399255105,1766209840323,-500.0,0.00013698,2]
[399255106,1766209840333,-500.0,0.00013698,2]
[399255107,1766209840342,-500.0,0.00013698,2]
[399255108,1766209840350,-500.0,0.00013698,2]
[399255109,1766209840360,-500.0,0.00013698,2]
[399255110,1766209840369,-500.0,0.00013698,2]
[399255111,1766209840378,-500.0,0.00013698,2]
[399255112,1766209840388,-500.0,0.00013698,2]
[399255113,1766209840397,-500.0,0.00013698,2]
[399255114,1766209840406,-500.0,0.00013698,2]
[399255115,1766209840415,-500.0,0.00013698,2]
[399255116,1766209840425,-511.62107373,0.00013698,2]
[399255117,1766209840434,-500.0,0.00013698,2]
[399255118,1766209840444,-500.0,0.00013698,2]
[399255119,1766209840454,-500.0,0.00013698,2]
[399255120,1766209840464,-500.0,0.00013698,2]
[399255121,1766209840474,-500.0,0.00013698,2]
[399255122,1766209840484,-500.0,0.00013698,2]
[399255123,1766209840495,-500.0,0.00013698,2]
[399255124,1766209840505,-500.0,0.00013698,2]
[399255125,1766209840517,-500.0,0.00013698,2]
[399255126,1766209840528,-500.0,0.00013698,2]
[399255127,1766209840538,-500.0,0.00013698,2]
[399255128,1766209840549,-502.93074974,0.00013698,2]
[399255129,1766209840559,-500.0,0.00013698,2]
[399255130,1766209840568,-500.0,0.00013698,2]
[399255131,1766209840576,-500.0,0.00013698,2]
[399255132,1766209840587,-500.0,0.00013698,2]
[399255133,1766209840597,-500.0,0.00013698,2]
[399255134,1766209840607,-500.0,0.00013698,2]
[399255135,1766209840618,-500.0,0.00013698,2]
[399255136,1766209840628,-500.0,0.00013698,2]
[399255137,1766209840638,-500.0,0.00013698,2]
[399255138,1766209840649,-518.52076054,0.00013698,2]
[399255139,1766209840659,-500.0,0.00013698,2]
[399255140,1766209840668,-500.0,0.00013698,2]
[399255141,1766209840678,-500.0,0.00013698,2]
[399255142,1766209840687,-500.0,0.00013698,2]
[399255143,1766209840696,-512.32849253,0.00013698,2]
[399255144,1766209840705,-500.0,0.00013698,2]
[399255145,1766209840715,-500.0,0.00013698,2]
[399255146,1766209840724,-500.0,0.00013698,2]
[399255147,1766209840734,-500.0,0.00013698,2]
[399255148,1766209840743,-500.0,0.00013698,2]
[399255149,1766209840752,-500.0,0.00013698,2]
[399255150,1766209840761,-520.35217826,0.00013698,2]
[399255151,1766209840770,-500.0,0.00013698,2]
[399255152,1766209840779,-500.0,0.00013698,2]
[399255153,1766209840788,-500.0,0.00013698,2]
[399255154,1766209840797,-322.99177949,0.00013698,2]
[399255155,1766209840806,-500.0,0.00013698,2]
[399255156,1766209840815,-500.0,0.00013698,2]
[399255157,1766209840824,-500.0,0.00013698,2]
[399255158,1766209840833,-500.0,0.00013698,2]
[399255159,1766209840843,-500.0,0.00013698,2]
[399255160,1766209840852,-545.71710874,0.00013698,2]
[399255161,1766209840861,-500.0,0.00013698,2]
[399255162,1766209840870,-500.0,0.00013698,2]
[399255163,1766209840879,-500.0,0.00013698,2]
[399255164,1766209840888,-500.0,0.00013698,2]
[399255165,1766209840897,-500.0,0.00013698,2]
[399255166,1766209840907,-510.27633362,0.00013698,2]
[399255167,1766209840917,-166.66,0.00013699,2]
[399255168,1766209840927,-445.92,0.00013699,2]
[399255169,1766209840937,-500.0,0.00013699,2]
[399255170,1766209840947,-500.0,0.00013699,2]
[399255171,1766209840956,-500.0,0.00013699,2]
[399255172,1766209840966,-500.0,0.00013699,2]
[399255173,1766209840977,-500.0,0.00013699,2]
[399255174,1766209840986,-500.0,0.00013699,2]
[399255175,1766209840995,-500.0,0.00013699,2]
[399255176,1766209841004,-500.0,0.00013699,2]
[399255177,1766209841014,-500.0,0.00013699,2]
[399255178,1766209841024,-500.0,0.00013699,2]
[399255179,1766209841033,-500.0,0.00013699,2]
[399255180,1766209841042,-500.0,0.00013699,2]
[399255181,1766209841052,-500.0,0.00013699,2]
[399255182,1766209841062,-500.0,0.00013699,2]
[399255183,1766209841073,-357.49060572,0.00013699,2]
[399255184,1766209841082,-500.0,0.00013699,2]